[Event "*** Titled Tuesday Blitz"]
[Site "Chess.com"]
[Date "2020.04.07"]
[Round "5"]
[White "Grandmaster2B"]
[Black "Everyfishknows"]
[Result "1-0"]
[WhiteElo "2548"]
[BlackElo "2352"]
[TimeControl "180+1"]
[EndTime "13:58:24 PDT"]
[Termination "Grandmaster2B won by checkmate"]

1. e4 {[%clk 0:03:00.9]} 1... e5 {[%clk 0:02:58.2]} 2. Nf3 {[%clk 0:03:01.2]}
2... Nc6 {[%clk 0:02:52.9]} 3. Bb5 {[%clk 0:03:01.7]} 3... a6 {[%clk 0:02:52.5]}
4. Ba4 {[%clk 0:03:02.3]} 4... Nf6 {[%clk 0:02:52.1]} 5. O-O {[%clk 0:03:02.9]}
5... Be7 {[%clk 0:02:52.1]} 6. Re1 {[%clk 0:03:03.3]} 6... b5 {[%clk 0:02:52.3]}
7. Bb3 {[%clk 0:03:03.1]} 7... d6 {[%clk 0:02:52.8]} 8. c3 {[%clk 0:03:02.8]}
8... O-O {[%clk 0:02:52.8]} 9. h3 {[%clk 0:03:02.9]} 9... Bb7 {[%clk 0:02:52.3]}
10. d4 {[%clk 0:03:01.2]} 10... Re8 {[%clk 0:02:52.2]} 11. Nbd2 {[%clk
0:02:58.7]} 11... Bf8 {[%clk 0:02:51.4]} 12. a3 {[%clk 0:02:58.3]} 12... h6
{[%clk 0:02:49.6]} 13. Bc2 {[%clk 0:02:58.3]} 13... Nb8 {[%clk 0:02:48.1]} 14.
b3 {[%clk 0:02:56]} 14... Nbd7 {[%clk 0:02:44.5]} 15. Bb2 {[%clk 0:02:56.3]}
15... g6 {[%clk 0:02:29.5]} 16. g3 {[%clk 0:02:33.5]} 16... Bg7 {[%clk
0:02:23.6]} 17. Kh2 {[%clk 0:02:33.7]} 17... Rc8 {[%clk 0:01:59.5]} 18. Rb1
{[%clk 0:02:28.7]} 18... c5 {[%clk 0:01:59.1]} 19. d5 {[%clk 0:02:28.6]} 19...
c4 {[%clk 0:01:59.3]} 20. b4 {[%clk 0:02:28.4]} 20... a5 {[%clk 0:01:54.3]} 21.
bxa5 {[%clk 0:02:10.1]} 21... Qxa5 {[%clk 0:01:47.8]} 22. a4 {[%clk 0:02:10.4]}
22... bxa4 {[%clk 0:01:31]} 23. Bxa4 {[%clk 0:02:11.3]} 23... Red8 {[%clk
0:01:17.8]} 24. Bc2 {[%clk 0:01:50.1]} 24... Ba6 {[%clk 0:01:09.1]} 25. Ra1
{[%clk 0:01:50.2]} 25... Qb6 {[%clk 0:01:09]} 26. Ba3 {[%clk 0:01:50.3]} 26...
Qxf2+ {[%clk 0:01:07.4]} 27. Kh1 {[%clk 0:01:48.6]} 27... Qxg3 {[%clk
0:01:01.6]} 28. Ng1 {[%clk 0:01:45.5]} 28... Nh5 {[%clk 0:00:43.6]} 29. Bxd6
{[%clk 0:01:45.2]} 29... Nf4 {[%clk 0:00:39.8]} 30. Qf3 {[%clk 0:01:42.4]} 30...
Qxf3+ {[%clk 0:00:37.1]} 31. Ndxf3 {[%clk 0:01:43.3]} 31... Ra8 {[%clk
0:00:33.9]} 32. Reb1 {[%clk 0:01:32.1]} 32... Nd3 {[%clk 0:00:29.6]} 33. Bc7
{[%clk 0:01:07.9]} 33... Rdc8 {[%clk 0:00:26.4]} 34. d6 {[%clk 0:01:08.3]} 34...
Bf6 {[%clk 0:00:20.2]} 35. Ra5 {[%clk 0:01:06.9]} 35... N7c5 {[%clk 0:00:19.2]}
36. Rb6 {[%clk 0:00:56.6]} 36... Bb7 {[%clk 0:00:12.9]} 37. Rab5 {[%clk
0:00:55.2]} 37... Ba6 {[%clk 0:00:11.2]} 38. Ra5 {[%clk 0:00:46.8]} 38... Bb7
{[%clk 0:00:10.9]} 39. Rxa8 {[%clk 0:00:38.7]} 39... Rxa8 {[%clk 0:00:11.8]} 40.
Bxd3 {[%clk 0:00:38.9]} 40... Nxd3 {[%clk 0:00:11.4]} 41. Rxb7 {[%clk 0:00:38]}
41... Nf2+ {[%clk 0:00:10.2]} 42. Kg2 {[%clk 0:00:36.4]} 42... Nxe4 {[%clk
0:00:11.1]} 43. Rb8+ {[%clk 0:00:29.2]} 43... Rxb8 {[%clk 0:00:11.1]} 44. Bxb8
{[%clk 0:00:30.1]} 44... Nxc3 {[%clk 0:00:09.9]} 45. d7 {[%clk 0:00:30.7]} 45...
Bd8 {[%clk 0:00:10.2]} 46. Nxe5 {[%clk 0:00:30.7]} 46... Kf8 {[%clk 0:00:09.8]}
47. Bd6+ {[%clk 0:00:30.4]} 47... Kg7 {[%clk 0:00:09.5]} 48. Nxc4 {[%clk
0:00:30.6]} 48... Ne4 {[%clk 0:00:09.3]} 49. Be5+ {[%clk 0:00:29.7]} 49... f6
{[%clk 0:00:09.8]} 50. Bf4 {[%clk 0:00:28.9]} 50... Nc5 {[%clk 0:00:09.5]} 51.
Nd6 {[%clk 0:00:26.8]} 51... Nxd7 {[%clk 0:00:09.6]} 52. Nf3 {[%clk 0:00:25.7]}
52... g5 {[%clk 0:00:09.7]} 53. Bh2 {[%clk 0:00:25.5]} 53... Nf8 {[%clk
0:00:05.4]} 54. Nd4 {[%clk 0:00:25.3]} 54... Bb6 {[%clk 0:00:03.7]} 55. N4f5+
{[%clk 0:00:24.7]} 55... Kg6 {[%clk 0:00:03.7]} 56. Ne7+ {[%clk 0:00:24.5]}
56... Kg7 {[%clk 0:00:03.8]} 57. Ndf5+ {[%clk 0:00:24.7]} 57... Kf7 {[%clk
0:00:04.5]} 58. Nd5 {[%clk 0:00:24.1]} 58... Bc5 {[%clk 0:00:04.8]} 59. Nxh6+
{[%clk 0:00:21.2]} 59... Ke6 {[%clk 0:00:05.4]} 60. Nc7+ {[%clk 0:00:21.2]}
60... Kd7 {[%clk 0:00:05.7]} 61. Ng4 {[%clk 0:00:21.5]} 61... Ne6 {[%clk
0:00:05.9]} 62. Nxf6+ {[%clk 0:00:20.5]} 62... Ke7 {[%clk 0:00:04.8]} 63. Nfd5+
{[%clk 0:00:19.7]} 63... Kd7 {[%clk 0:00:04.5]} 64. Nxe6 {[%clk 0:00:20.1]}
64... Kxe6 {[%clk 0:00:04.8]} 65. Nc3 {[%clk 0:00:21]} 65... Bd4 {[%clk
0:00:04.6]} 66. Ne4 {[%clk 0:00:21]} 66... Kf5 {[%clk 0:00:03.7]} 67. Kf3 {[%clk
0:00:20.6]} 67... Bg7 {[%clk 0:00:04.1]} 68. Bg1 {[%clk 0:00:19.8]} 68... Bf8
{[%clk 0:00:04.5]} 69. Be3 {[%clk 0:00:19.8]} 69... Be7 {[%clk 0:00:05.1]} 70.
Ng3+ {[%clk 0:00:20.3]} 70... Kg6 {[%clk 0:00:05.3]} 71. Kg4 {[%clk 0:00:21.2]}
71... Bd6 {[%clk 0:00:05.3]} 72. Ne4 {[%clk 0:00:21.1]} 72... Be7 {[%clk
0:00:05.4]} 73. Bxg5 {[%clk 0:00:21.6]} 73... Bb4 {[%clk 0:00:05]} 74. h4 {[%clk
0:00:22.1]} 74... Kh7 {[%clk 0:00:05.4]} 75. h5 {[%clk 0:00:22.5]} 75... Bf8
{[%clk 0:00:06.1]} 76. Nf6+ {[%clk 0:00:22.9]} 76... Kh8 {[%clk 0:00:06.1]} 77.
Kf5 {[%clk 0:00:23.4]} 77... Kg7 {[%clk 0:00:05.8]} 78. Ng4 {[%clk 0:00:19.7]}
78... Kh7 {[%clk 0:00:05.8]} 79. Kf6 {[%clk 0:00:17.9]} 79... Bg7+ {[%clk
0:00:05.4]} 80. Kf7 {[%clk 0:00:18.1]} 80... Kh8 {[%clk 0:00:05.7]} 81. Bf6
{[%clk 0:00:09.2]} 81... Kh7 {[%clk 0:00:05.6]} 82. Bg5 {[%clk 0:00:06.4]} 82...
Kh8 {[%clk 0:00:02.8]} 83. Ne3 {[%clk 0:00:06.2]} 83... Kh7 {[%clk 0:00:02.8]}
84. Nf5 {[%clk 0:00:06.2]} 84... Be5 {[%clk 0:00:03.4]} 85. h6 {[%clk
0:00:04.6]} 85... Bg7 {[%clk 0:00:02.2]} 86. Nxg7 {[%clk 0:00:03]} 86... Kh8
{[%clk 0:00:02.7]} 87. Nf5 {[%clk 0:00:03.4]} 87... Kh7 {[%clk 0:00:03.6]} 88.
Kf6 {[%clk 0:00:03.7]} 88... Kh8 {[%clk 0:00:04.5]} 89. Kg6 {[%clk 0:00:04.1]}
89... Kg8 {[%clk 0:00:04.8]} 90. h7+ {[%clk 0:00:04.6]} 90... Kh8 {[%clk
0:00:05.7]} 91. Bf6# {[%clk 0:00:04.8]} 1-0

[Event "*** Titled Tuesday Blitz"]
[Site "Chess.com"]
[Date "2020.04.07"]
[Round "5"]
[White "rynos0411"]
[Black "kungmongmanh"]
[Result "1-0"]
[WhiteElo "2394"]
[BlackElo "2532"]
[TimeControl "180+1"]
[EndTime "13:58:32 PDT"]
[Termination "rynos0411 won on time"]

1. e4 {[%clk 0:02:57]} 1... e6 {[%clk 0:02:59.3]} 2. d4 {[%clk 0:02:55.4]} 2...
d5 {[%clk 0:02:59.6]} 3. exd5 {[%clk 0:02:56.3]} 3... exd5 {[%clk 0:02:59]} 4.
Bd3 {[%clk 0:02:56.8]} 4... Nf6 {[%clk 0:02:59]} 5. Ne2 {[%clk 0:02:55.6]} 5...
Bd6 {[%clk 0:02:45.8]} 6. h3 {[%clk 0:02:45.4]} 6... O-O {[%clk 0:02:41]} 7. O-O
{[%clk 0:02:45.2]} 7... h6 {[%clk 0:02:36.6]} 8. c3 {[%clk 0:02:43.3]} 8... Nc6
{[%clk 0:02:30.1]} 9. Bf4 {[%clk 0:02:42.9]} 9... Ne7 {[%clk 0:02:28.9]} 10. Qc2
{[%clk 0:02:35.3]} 10... Bxf4 {[%clk 0:02:24.6]} 11. Nxf4 {[%clk 0:02:34.4]}
11... Qd6 {[%clk 0:02:24.9]} 12. Ne2 {[%clk 0:02:33.6]} 12... Be6 {[%clk
0:02:04.3]} 13. Nd2 {[%clk 0:02:31.5]} 13... b6 {[%clk 0:01:54.9]} 14. Nf3
{[%clk 0:02:24.5]} 14... c5 {[%clk 0:01:55]} 15. Ng3 {[%clk 0:02:23.2]} 15... c4
{[%clk 0:01:54.1]} 16. Be2 {[%clk 0:02:11.2]} 16... Qf4 {[%clk 0:01:44.7]} 17.
Ne5 {[%clk 0:02:05.5]} 17... Nf5 {[%clk 0:01:36.3]} 18. Nxf5 {[%clk 0:01:57.9]}
18... Bxf5 {[%clk 0:01:36.8]} 19. Qc1 {[%clk 0:01:58.4]} 19... Qxc1 {[%clk
0:01:32.3]} 20. Raxc1 {[%clk 0:01:59.3]} 20... Rfe8 {[%clk 0:01:28.9]} 21. Bf3
{[%clk 0:01:59.2]} 21... Be4 {[%clk 0:01:29.2]} 22. Bxe4 {[%clk 0:01:51.8]}
22... Nxe4 {[%clk 0:01:29.2]} 23. f3 {[%clk 0:01:51]} 23... Nd6 {[%clk
0:01:29.3]} 24. Kf2 {[%clk 0:01:47.7]} 24... f6 {[%clk 0:01:28.9]} 25. Ng6
{[%clk 0:01:30]} 25... Rad8 {[%clk 0:01:26.6]} 26. Rfe1 {[%clk 0:01:28.1]} 26...
Kf7 {[%clk 0:01:23.9]} 27. Nf4 {[%clk 0:01:25.9]} 27... Rxe1 {[%clk 0:01:04.3]}
28. Rxe1 {[%clk 0:01:23.4]} 28... Nb5 {[%clk 0:01:02.8]} 29. h4 {[%clk
0:01:06.3]} 29... Nc7 {[%clk 0:00:42.5]} 30. h5 {[%clk 0:01:04.9]} 30... b5
{[%clk 0:00:40.8]} 31. Kg3 {[%clk 0:00:59.6]} 31... a5 {[%clk 0:00:39.6]} 32.
Kg4 {[%clk 0:00:59.8]} 32... b4 {[%clk 0:00:35.6]} 33. Kf5 {[%clk 0:00:41.4]}
33... bxc3 {[%clk 0:00:29.3]} 34. bxc3 {[%clk 0:00:42.3]} 34... Nb5 {[%clk
0:00:26.5]} 35. Re3 {[%clk 0:00:42]} 35... Rd7 {[%clk 0:00:25.9]} 36. Ng6 {[%clk
0:00:37.1]} 36... Nd6+ {[%clk 0:00:23.3]} 37. Kg4 {[%clk 0:00:36.9]} 37... Nb5
{[%clk 0:00:23.7]} 38. Nh8+ {[%clk 0:00:33.9]} 38... Kf8 {[%clk 0:00:22.7]} 39.
Kf5 {[%clk 0:00:32.5]} 39... Rd8 {[%clk 0:00:16.7]} 40. Ng6+ {[%clk 0:00:28.3]}
40... Kg8 {[%clk 0:00:11.4]} 41. Ne7+ {[%clk 0:00:22.6]} 41... Kf7 {[%clk
0:00:11]} 42. Ng6 {[%clk 0:00:22.1]} 42... Nd6+ {[%clk 0:00:09.2]} 43. Kf4
{[%clk 0:00:22.3]} 43... Re8 {[%clk 0:00:08.4]} 44. Rxe8 {[%clk 0:00:16.1]}
44... Kxe8 {[%clk 0:00:08.7]} 45. Ke3 {[%clk 0:00:16.7]} 45... Kf7 {[%clk
0:00:08.4]} 46. Nf4 {[%clk 0:00:16.8]} 46... Nf5+ {[%clk 0:00:07.3]} 47. Kd2
{[%clk 0:00:17]} 47... Ne7 {[%clk 0:00:07.9]} 48. g4 {[%clk 0:00:16.5]} 48...
Ke8 {[%clk 0:00:08.3]} 49. Ke3 {[%clk 0:00:16.3]} 49... Kd7 {[%clk 0:00:08.5]}
50. Ne2 {[%clk 0:00:15.4]} 50... Kd6 {[%clk 0:00:08.4]} 51. Kf4 {[%clk
0:00:15.9]} 51... Ke6 {[%clk 0:00:08.4]} 52. Ng3 {[%clk 0:00:16.1]} 52... Nc6
{[%clk 0:00:09]} 53. Nf5 {[%clk 0:00:16.2]} 53... Kf7 {[%clk 0:00:09.5]} 54.
Nd6+ {[%clk 0:00:16.3]} 54... Ke6 {[%clk 0:00:10.1]} 55. Ne8 {[%clk 0:00:16.1]}
55... Kf7 {[%clk 0:00:10.3]} 56. Nc7 {[%clk 0:00:16.4]} 56... Ne7 {[%clk
0:00:08.4]} 57. a4 {[%clk 0:00:16.2]} 57... Kf8 {[%clk 0:00:07.6]} 58. Kg3
{[%clk 0:00:16.1]} 58... Kf7 {[%clk 0:00:08.1]} 59. f4 {[%clk 0:00:16.4]} 59...
f5 {[%clk 0:00:07.6]} 60. g5 {[%clk 0:00:16.1]} 60... hxg5 {[%clk 0:00:07.1]}
61. fxg5 {[%clk 0:00:17]} 61... g6 {[%clk 0:00:07.6]} 62. h6 {[%clk 0:00:17.4]}
62... Kg8 {[%clk 0:00:08]} 63. Kf4 {[%clk 0:00:17.8]} 63... Kf7 {[%clk
0:00:08.4]} 64. Ke5 {[%clk 0:00:18.2]} 64... Kg8 {[%clk 0:00:07.3]} 65. Nxd5
{[%clk 0:00:18.5]} 65... Nc6+ {[%clk 0:00:07.5]} 66. Kf6 {[%clk 0:00:18.2]}
66... Kh7 {[%clk 0:00:07.6]} 67. Ne7 {[%clk 0:00:17.8]} 67... Nxe7 {[%clk
0:00:07.7]} 68. Kxe7 {[%clk 0:00:18.7]} 68... f4 {[%clk 0:00:08.6]} 69. d5
{[%clk 0:00:18.1]} 69... f3 {[%clk 0:00:09.5]} 70. d6 {[%clk 0:00:19]} 70... f2
{[%clk 0:00:10.4]} 71. d7 {[%clk 0:00:19.9]} 71... f1=Q {[%clk 0:00:11]} 72.
d8=Q {[%clk 0:00:20.8]} 72... Qe2+ {[%clk 0:00:11]} 73. Kd7 {[%clk 0:00:20]}
73... Qd3+ {[%clk 0:00:09.7]} 74. Kc7 {[%clk 0:00:18.9]} 74... Qg3+ {[%clk
0:00:08.9]} 75. Kb6 {[%clk 0:00:15.1]} 75... Qe3+ {[%clk 0:00:07.7]} 76. Kb7
{[%clk 0:00:11.3]} 76... Qe4+ {[%clk 0:00:07.2]} 77. Ka7 {[%clk 0:00:09.3]}
77... Qe3+ {[%clk 0:00:05.8]} 78. Qd4 {[%clk 0:00:05.8]} 78... Qe7+ {[%clk
0:00:05.5]} 79. Ka6 {[%clk 0:00:05.9]} 79... Qe6+ {[%clk 0:00:04.1]} 80. Kxa5
{[%clk 0:00:06.4]} 80... Qf5+ {[%clk 0:00:01.9]} 81. Kb4 {[%clk 0:00:06.6]} 1-0

[Event "*** Titled Tuesday Blitz"]
[Site "Chess.com"]
[Date "2020.04.07"]
[Round "5"]
[White "bait_or_mate"]
[Black "MFBerna"]
[Result "1/2-1/2"]
[WhiteElo "2502"]
[BlackElo "2332"]
[TimeControl "180+1"]
[EndTime "13:58:35 PDT"]
[Termination "Game drawn by repetition"]

1. d4 {[%clk 0:03:00.9]} 1... Nf6 {[%clk 0:02:59.5]} 2. c4 {[%clk 0:03:00.8]}
2... e6 {[%clk 0:02:59.6]} 3. Nf3 {[%clk 0:03:00.2]} 3... d5 {[%clk 0:02:59.7]}
4. g3 {[%clk 0:02:57.3]} 4... Be7 {[%clk 0:02:59.7]} 5. Bg2 {[%clk 0:02:56.4]}
5... O-O {[%clk 0:02:59.8]} 6. O-O {[%clk 0:02:55.6]} 6... dxc4 {[%clk
0:02:59.9]} 7. Ne5 {[%clk 0:02:55.1]} 7... c5 {[%clk 0:02:57.5]} 8. dxc5 {[%clk
0:02:52.2]} 8... Qc7 {[%clk 0:02:57]} 9. Nxc4 {[%clk 0:02:51.5]} 9... Qxc5
{[%clk 0:02:56.2]} 10. b3 {[%clk 0:02:51.7]} 10... Nc6 {[%clk 0:02:56.6]} 11.
Ba3 {[%clk 0:02:50.8]} 11... Nb4 {[%clk 0:02:56.5]} 12. Nc3 {[%clk 0:02:50]}
12... Rd8 {[%clk 0:02:55.5]} 13. Qc1 {[%clk 0:02:46.4]} 13... Qh5 {[%clk
0:02:40.2]} 14. Ne3 {[%clk 0:02:33.6]} 14... e5 {[%clk 0:02:24.7]} 15. Qb2
{[%clk 0:02:04.4]} 15... Bh3 {[%clk 0:02:03.7]} 16. Rad1 {[%clk 0:02:03.4]}
16... Bxg2 {[%clk 0:01:59.2]} 17. Kxg2 {[%clk 0:02:04.3]} 17... Rd4 {[%clk
0:01:25.6]} 18. Nb5 {[%clk 0:01:54.3]} 18... Re4 {[%clk 0:00:58.9]} 19. h3
{[%clk 0:01:31.4]} 19... Qg6 {[%clk 0:00:53.2]} 20. Nd6 {[%clk 0:01:27.2]} 20...
Bxd6 {[%clk 0:00:46.4]} 21. Rxd6 {[%clk 0:01:28.1]} 21... Nc6 {[%clk 0:00:40.3]}
22. Rfd1 {[%clk 0:01:10.7]} 22... Re8 {[%clk 0:00:38.9]} 23. Qd2 {[%clk
0:01:07.9]} 23... Rd4 {[%clk 0:00:33.7]} 24. Qc2 {[%clk 0:01:04.3]} 24... Qxc2
{[%clk 0:00:26.4]} 25. Nxc2 {[%clk 0:01:05.2]} 25... Rxd1 {[%clk 0:00:26.5]} 26.
Rxd1 {[%clk 0:01:03.8]} 26... Rd8 {[%clk 0:00:21.2]} 27. Rxd8+ {[%clk 0:00:58]}
27... Nxd8 {[%clk 0:00:22.1]} 28. Bd6 {[%clk 0:00:40.1]} 28... Nd7 {[%clk
0:00:21.3]} 29. Kf3 {[%clk 0:00:38.2]} 29... f5 {[%clk 0:00:18.9]} 30. Ke3
{[%clk 0:00:37.8]} 30... Kf7 {[%clk 0:00:18.7]} 31. Kd3 {[%clk 0:00:38.1]} 31...
Ke6 {[%clk 0:00:18.8]} 32. Ba3 {[%clk 0:00:38]} 32... Nc6 {[%clk 0:00:19]} 33.
Ne3 {[%clk 0:00:36.4]} 33... g6 {[%clk 0:00:17.2]} 34. Nc4 {[%clk 0:00:36.3]}
34... b5 {[%clk 0:00:14.7]} 35. Nd2 {[%clk 0:00:34]} 35... e4+ {[%clk
0:00:13.1]} 36. Kc3 {[%clk 0:00:30.7]} 36... Kd5 {[%clk 0:00:11.7]} 37. Nf1
{[%clk 0:00:19.9]} 37... a5 {[%clk 0:00:11.3]} 38. Ne3+ {[%clk 0:00:19.6]} 38...
Ke6 {[%clk 0:00:11.8]} 39. Bb2 {[%clk 0:00:20]} 39... Nde5 {[%clk 0:00:10.7]}
40. a4 {[%clk 0:00:19.4]} 40... bxa4 {[%clk 0:00:09.7]} 41. bxa4 {[%clk
0:00:20.3]} 41... Nb4 {[%clk 0:00:08.6]} 42. Kb3 {[%clk 0:00:19]} 42... Nec6
{[%clk 0:00:08.5]} 43. Nc4 {[%clk 0:00:18.5]} 43... Nd5 {[%clk 0:00:07.7]} 44.
Bc1 {[%clk 0:00:17.1]} 44... Nd4+ {[%clk 0:00:06.2]} 45. Kb2 {[%clk 0:00:15.2]}
45... Nxe2 {[%clk 0:00:07.1]} 46. Bd2 {[%clk 0:00:15.4]} 46... Ng1 {[%clk
0:00:03.7]} 47. h4 {[%clk 0:00:13.7]} 47... Nh3 {[%clk 0:00:03.2]} 48. Be1
{[%clk 0:00:12.9]} 48... e3 {[%clk 0:00:03.4]} 49. Nxe3 {[%clk 0:00:11.9]} 49...
Nxe3 {[%clk 0:00:03.3]} 50. fxe3 {[%clk 0:00:12.8]} 50... Ng1 {[%clk 0:00:02.8]}
51. Bxa5 {[%clk 0:00:12.6]} 51... Kd5 {[%clk 0:00:03.7]} 52. Kc3 {[%clk
0:00:12]} 52... Ne2+ {[%clk 0:00:03.9]} 53. Kd3 {[%clk 0:00:11.9]} 53... Nxg3
{[%clk 0:00:04.8]} 54. Bc7 {[%clk 0:00:11.9]} 54... Ne4 {[%clk 0:00:04.9]} 55.
a5 {[%clk 0:00:12.3]} 55... Kc6 {[%clk 0:00:05.8]} 56. Bd8 {[%clk 0:00:11.7]}
56... Nc5+ {[%clk 0:00:05.7]} 57. Kd4 {[%clk 0:00:12]} 57... Ne6+ {[%clk
0:00:06.1]} 58. Ke5 {[%clk 0:00:12.4]} 58... Nxd8 {[%clk 0:00:07]} 59. Kf6
{[%clk 0:00:12.4]} 59... Kd5 {[%clk 0:00:07.1]} 60. Kg7 {[%clk 0:00:05.2]} 60...
Ke4 {[%clk 0:00:07.2]} 61. Kxh7 {[%clk 0:00:05.8]} 61... Kxe3 {[%clk 0:00:07.3]}
62. Kxg6 {[%clk 0:00:06.4]} 62... f4 {[%clk 0:00:07.6]} 63. h5 {[%clk
0:00:06.8]} 63... Ne6 {[%clk 0:00:06.2]} 64. a6 {[%clk 0:00:03.4]} 64... f3
{[%clk 0:00:06.2]} 65. a7 {[%clk 0:00:01.9]} 65... Nc7 {[%clk 0:00:06.6]} 66. h6
{[%clk 0:00:02.4]} 66... f2 {[%clk 0:00:07.1]} 67. h7 {[%clk 0:00:02.7]} 67...
f1=Q {[%clk 0:00:07.7]} 68. h8=Q {[%clk 0:00:03.6]} 68... Qg2+ {[%clk
0:00:07.4]} 69. Kf5 {[%clk 0:00:03.7]} 69... Qf3+ {[%clk 0:00:06.5]} 70. Kg6
{[%clk 0:00:03.2]} 70... Qg4+ {[%clk 0:00:06.3]} 71. Kh7 {[%clk 0:00:03.1]}
71... Qh5+ {[%clk 0:00:05.8]} 72. Kg8 {[%clk 0:00:03.5]} 72... Qg6+ {[%clk
0:00:05.6]} 73. Qg7 {[%clk 0:00:03.3]} 73... Qe8+ {[%clk 0:00:04.8]} 74. Qf8
{[%clk 0:00:03.3]} 74... Qg6+ {[%clk 0:00:04.7]} 75. Qg7 {[%clk 0:00:03.8]}
75... Qe6+ {[%clk 0:00:04.1]} 76. Qf7 {[%clk 0:00:03.8]} 76... Qg4+ {[%clk
0:00:03.3]} 77. Qg7 {[%clk 0:00:04.1]} 77... Qe6+ {[%clk 0:00:03.3]} 78. Qf7
{[%clk 0:00:04.4]} 78... Qg4+ {[%clk 0:00:03.4]} 79. Qg7 {[%clk 0:00:04.6]}
79... Qe6+ {[%clk 0:00:03.4]} 1/2-1/2